[Event "Titled Tuesday Blitz June 15 2021"]
[White "Kovalev, Vladislav"]
[Black "Leiva, Gianmarco"]
[WhiteFideId "13504398"]
[BlackFideId "3804399"]
[WhiteElo "2573"]
[BlackElo "2365"]
[Result "1-0"]
[Round "03"]
[TimeControl "180+1"]
[Date "2021.06.15"]
[WhiteClock "0:00:25"]
[BlackClock "0:00:02"]

1. e4 {[%clk 0:03:00]}  c6 {[%clk 0:02:59]} 2. Nf3 {[%clk 0:03:01]}  d5 {[%clk 0:02:59]} 3. Nc3 {[%clk 0:03:02]}  dxe4 {[%clk 0:03:00]} 4. Nxe4 {[%clk 0:03:02]}  Nf6 {[%clk 0:03:00]} 5. Qe2 {[%clk 0:03:03]}  Nxe4 {[%clk 0:03:01]} 6. Qxe4 {[%clk 0:03:04]}  Qd5 {[%clk 0:03:01]} 7. Qh4 {[%clk 0:03:04]}  Bf5 {[%clk 0:02:54]} 8. Bc4 {[%clk 0:03:05]}  Qd8 {[%clk 0:02:42]} 9. O-O {[%clk 0:03:04]}  e6 {[%clk 0:02:41]} 10. Qxd8+ {[%clk 0:02:52]}  Kxd8 {[%clk 0:02:41]} 11. d3 {[%clk 0:02:52]}  Nd7 {[%clk 0:02:40]} 12. a4 {[%clk 0:02:52]}  Bd6 {[%clk 0:02:37]} 13. a5 {[%clk 0:02:52]}  Kc7 {[%clk 0:02:37]} 14. Re1 {[%clk 0:02:47]}  h6 {[%clk 0:02:35]} 15. Bd2 {[%clk 0:02:42]}  Rhe8 {[%clk 0:02:31]} 16. b4 {[%clk 0:02:41]}  a6 {[%clk 0:02:28]} 17. Be3 {[%clk 0:02:24]}  Bxb4 {[%clk 0:02:15]} 18. Reb1 {[%clk 0:02:22]}  Bd6 {[%clk 0:02:15]} 19. Ra2 {[%clk 0:02:12]}  Re7 {[%clk 0:01:38]} 20. Rab2 {[%clk 0:02:09]}  e5 {[%clk 0:01:38]} 21. Rxb7+ {[%clk 0:02:08]}  Kc8 {[%clk 0:01:35]} 22. Nd2 {[%clk 0:01:48]}  Be6 {[%clk 0:01:25]} 23. Ra7 {[%clk 0:01:00]}  Rxa7 {[%clk 0:01:19]} 24. Bxa7 {[%clk 0:01:01]}  Bxc4 {[%clk 0:00:55]} 25. Nxc4 {[%clk 0:01:02]}  Bc7 {[%clk 0:00:56]} 26. Kf1 {[%clk 0:01:02]}  e4 {[%clk 0:00:35]} 27. d4 {[%clk 0:01:02]}  f5 {[%clk 0:00:33]} 28. Bb6 {[%clk 0:01:00]}  Bxb6 {[%clk 0:00:31]} 29. axb6 {[%clk 0:01:00]}  Nb8 {[%clk 0:00:23]} 30. Nd6+ {[%clk 0:00:57]}  Kd7 {[%clk 0:00:20]} 31. Nxf5 {[%clk 0:00:58]}  Ke6 {[%clk 0:00:20]} 32. Ne3 {[%clk 0:00:57]}  Rd7 {[%clk 0:00:16]} 33. c3 {[%clk 0:00:56]}  Rb7 {[%clk 0:00:16]} 34. c4 {[%clk 0:00:53]}  Rd7 {[%clk 0:00:10]} 35. d5+ {[%clk 0:00:52]}  cxd5 {[%clk 0:00:09]} 36. cxd5+ {[%clk 0:00:53]}  Kd6 {[%clk 0:00:07]} 37. Rb4 {[%clk 0:00:40]}  Kc5 {[%clk 0:00:04]} 38. Rxe4 {[%clk 0:00:35]}  Kxb6 {[%clk 0:00:05]} 39. Re6+ {[%clk 0:00:36]}  Kc5 {[%clk 0:00:05]} 40. Ke2 {[%clk 0:00:36]}  a5 {[%clk 0:00:05]} 41. Kd3 {[%clk 0:00:37]}  a4 {[%clk 0:00:05]} 42. Kc3 {[%clk 0:00:35]}  a3 {[%clk 0:00:05]} 43. Kb3 {[%clk 0:00:35]}  Ra7 {[%clk 0:00:05]} 44. Ka2 {[%clk 0:00:36]}  Kd4 {[%clk 0:00:03]} 45. d6 {[%clk 0:00:31]}  Nc6 {[%clk 0:00:02]} 46. d7 {[%clk 0:00:32]}  Nb4+ {[%clk 0:00:02]} 47. Kb3 {[%clk 0:00:32]}  Rxd7 {[%clk 0:00:01]} 48. Kxb4 {[%clk 0:00:32]}  Ra7 {[%clk 0:00:01]} 49. Nc2+ {[%clk 0:00:28]}  Kd5 {[%clk 0:00:01]} 50. Re1 {[%clk 0:00:24]}  a2 {[%clk 0:00:02]} 51. Kc3 {[%clk 0:00:25]} 1-0


[Site "https://www.chess.com"]

[Event "Titled Tuesday Blitz June 15 2021"]
[White "Kukhmazov, Arsen"]
[Black "Altman, Joshua"]
[WhiteFideId "24108260"]
[BlackFideId "426210"]
[WhiteElo "2453"]
[BlackElo "1932"]
[Result "1-0"]
[Round "03"]
[TimeControl "180+1"]
[Date "2021.06.15"]
[WhiteClock "0:01:35"]
[BlackClock "0:00:40"]

1. d4 {[%clk 0:02:59]}  Nf6 {[%clk 0:02:59]} 2. c4 {[%clk 0:02:59]}  e6 {[%clk 0:03:00]} 3. Nc3 {[%clk 0:02:59]}  Bb4 {[%clk 0:03:00]} 4. Qc2 {[%clk 0:03:00]}  O-O {[%clk 0:02:59]} 5. e4 {[%clk 0:03:00]}  d6 {[%clk 0:02:53]} 6. e5 {[%clk 0:02:58]}  dxe5 {[%clk 0:02:53]} 7. dxe5 {[%clk 0:02:59]}  Ng4 {[%clk 0:02:53]} 8. Nf3 {[%clk 0:02:59]}  Nc6 {[%clk 0:02:53]} 9. Bf4 {[%clk 0:02:58]}  Nd4 {[%clk 0:02:53]} 10. Qe4 {[%clk 0:02:58]}  c5 {[%clk 0:02:09]} 11. h3 {[%clk 0:02:16]}  f5 {[%clk 0:01:56]} 12. Qd3 {[%clk 0:02:16]}  Nh6 {[%clk 0:01:47]} 13. Bxh6 {[%clk 0:02:16]}  gxh6 {[%clk 0:01:48]} 14. O-O-O {[%clk 0:02:11]}  Qa5 {[%clk 0:01:40]} 15. Nxd4 {[%clk 0:02:06]}  cxd4 {[%clk 0:01:38]} 16. Qxd4 {[%clk 0:02:07]}  Bxc3 {[%clk 0:01:35]} 17. Qxc3 {[%clk 0:02:08]}  Qxa2 {[%clk 0:01:34]} 18. Bd3 {[%clk 0:02:06]}  Bd7 {[%clk 0:01:30]} 19. Bb1 {[%clk 0:02:03]}  Qa4 {[%clk 0:01:28]} 20. Rd6 {[%clk 0:01:57]}  Rac8 {[%clk 0:01:24]} 21. b3 {[%clk 0:01:50]}  Qa3+ {[%clk 0:01:25]} 22. Qb2 {[%clk 0:01:50]}  Qxb2+ {[%clk 0:01:12]} 23. Kxb2 {[%clk 0:01:51]}  Bc6 {[%clk 0:01:12]} 24. Rxe6 {[%clk 0:01:42]}  Rce8 {[%clk 0:01:10]} 25. Rxe8 {[%clk 0:01:40]}  Rxe8 {[%clk 0:01:11]} 26. f4 {[%clk 0:01:41]}  Kf7 {[%clk 0:00:53]} 27. Rd1 {[%clk 0:01:40]}  Re7 {[%clk 0:00:46]} 28. Bxf5 {[%clk 0:01:39]}  Bxg2 {[%clk 0:00:46]} 29. Rd6 {[%clk 0:01:36]}  h5 {[%clk 0:00:40]} 30. Rh6 {[%clk 0:01:35]} 1-0


[Site "https://www.chess.com"]

[Event "Titled Tuesday Blitz June 15 2021"]
[White "Mammadova, Gulnar"]
[Black "Dobrov, Vladimir"]
[WhiteFideId "13403508"]
[BlackFideId "4136594"]
[WhiteElo "2328"]
[BlackElo "2614"]
[Result "0-1"]
[Round "03"]
[TimeControl "180+1"]
[Date "2021.06.15"]
[WhiteClock "0:00:05"]
[BlackClock "0:01:04"]

1. e4 {[%clk 0:03:00]}  c5 {[%clk 0:02:59]} 2. Nf3 {[%clk 0:03:00]}  d6 {[%clk 0:02:58]} 3. Bb5+ {[%clk 0:02:59]}  Bd7 {[%clk 0:02:57]} 4. c4 {[%clk 0:02:58]}  e5 {[%clk 0:02:55]} 5. Nc3 {[%clk 0:02:57]}  Nc6 {[%clk 0:02:55]} 6. O-O {[%clk 0:02:56]}  Nge7 {[%clk 0:02:41]} 7. d3 {[%clk 0:02:55]}  Ng6 {[%clk 0:02:41]} 8. Nd5 {[%clk 0:02:55]}  Be7 {[%clk 0:02:41]} 9. Bxc6 {[%clk 0:02:36]}  bxc6 {[%clk 0:02:35]} 10. Nxe7 {[%clk 0:02:36]}  Qxe7 {[%clk 0:02:35]} 11. Bg5 {[%clk 0:02:19]}  f6 {[%clk 0:02:34]} 12. Bd2 {[%clk 0:02:19]}  O-O {[%clk 0:02:33]} 13. h3 {[%clk 0:02:13]}  f5 {[%clk 0:02:16]} 14. b4 {[%clk 0:01:38]}  cxb4 {[%clk 0:02:09]} 15. Bxb4 {[%clk 0:01:35]}  c5 {[%clk 0:02:08]} 16. Bc3 {[%clk 0:01:35]}  Nf4 {[%clk 0:02:05]} 17. Kh2 {[%clk 0:01:30]}  Bc6 {[%clk 0:01:59]} 18. Qc2 {[%clk 0:00:55]}  Nxd3 {[%clk 0:01:53]} 19. exf5 {[%clk 0:00:49]}  e4 {[%clk 0:01:30]} 20. Ne1 {[%clk 0:00:43]}  Ne5 {[%clk 0:01:18]} 21. g4 {[%clk 0:00:19]}  Nxg4+ {[%clk 0:01:18]} 22. hxg4 {[%clk 0:00:17]}  Qh4+ {[%clk 0:01:18]} 23. Kg1 {[%clk 0:00:18]}  Qxg4+ {[%clk 0:01:19]} 24. Ng2 {[%clk 0:00:18]}  Rxf5 {[%clk 0:01:19]} 25. Qd1 {[%clk 0:00:15]}  Rf3 {[%clk 0:01:18]} 26. Re1 {[%clk 0:00:13]}  Raf8 {[%clk 0:01:15]} 27. Re3 {[%clk 0:00:12]}  Qg6 {[%clk 0:01:10]} 28. Kh1 {[%clk 0:00:06]}  Rxf2 {[%clk 0:01:06]} 29. Qg1 {[%clk 0:00:06]}  Qh5+ {[%clk 0:01:03]} 30. Qh2 {[%clk 0:00:05]}  Rf1+ {[%clk 0:01:04]} 0-1


[Site "https://www.chess.com"]

[Event "Titled Tuesday Blitz June 15 2021"]
[White "Matlakov, Maxim"]
[Black "Bronstein, Or"]
[WhiteFideId "4168003"]
[BlackFideId "2815770"]
[WhiteElo "2760"]
[BlackElo "2234"]
[Result "1-0"]
[Round "03"]
[TimeControl "180+1"]
[Date "2021.06.15"]
[WhiteClock "0:00:35"]
[BlackClock "0:00:10"]

1. e4 {[%clk 0:03:00]}  e6 {[%clk 0:02:58]} 2. d4 {[%clk 0:02:58]}  d5 {[%clk 0:02:59]} 3. e5 {[%clk 0:02:57]}  c5 {[%clk 0:02:58]} 4. c3 {[%clk 0:02:57]}  Nc6 {[%clk 0:02:59]} 5. Nf3 {[%clk 0:02:56]}  Bd7 {[%clk 0:02:57]} 6. Be2 {[%clk 0:02:55]}  cxd4 {[%clk 0:02:54]} 7. cxd4 {[%clk 0:02:55]}  Nge7 {[%clk 0:02:54]} 8. O-O {[%clk 0:02:55]}  Nf5 {[%clk 0:02:54]} 9. Na3 {[%clk 0:02:54]}  Qb6 {[%clk 0:02:54]} 10. Nc2 {[%clk 0:02:53]}  Na5 {[%clk 0:02:54]} 11. Ne3 {[%clk 0:02:40]}  Nxe3 {[%clk 0:02:51]} 12. Bxe3 {[%clk 0:02:41]}  Be7 {[%clk 0:02:08]} 13. b3 {[%clk 0:02:05]}  Bb5 {[%clk 0:02:08]} 14. Bxb5+ {[%clk 0:02:01]}  Qxb5 {[%clk 0:02:09]} 15. Ng5 {[%clk 0:02:01]}  h6 {[%clk 0:01:55]} 16. Qh5 {[%clk 0:01:58]}  O-O {[%clk 0:01:42]} 17. Nh3 {[%clk 0:01:53]}  Qd3 {[%clk 0:01:40]} 18. Nf4 {[%clk 0:01:50]}  Qe4 {[%clk 0:01:36]} 19. Rac1 {[%clk 0:01:39]}  Rac8 {[%clk 0:01:33]} 20. Ne2 {[%clk 0:01:38]}  Ba3 {[%clk 0:01:28]} 21. Rxc8 {[%clk 0:01:23]}  Rxc8 {[%clk 0:01:26]} 22. Ng3 {[%clk 0:01:24]}  Qd3 {[%clk 0:01:19]} 23. Qg4 {[%clk 0:01:22]}  Qg6 {[%clk 0:01:13]} 24. Qe2 {[%clk 0:01:22]}  a6 {[%clk 0:01:11]} 25. h4 {[%clk 0:01:19]}  Rc2 {[%clk 0:01:10]} 26. Qf3 {[%clk 0:01:19]}  Nc6 {[%clk 0:00:52]} 27. h5 {[%clk 0:01:16]}  Qd3 {[%clk 0:00:53]} 28. Qg4 {[%clk 0:01:16]}  Kf8 {[%clk 0:00:49]} 29. Rd1 {[%clk 0:01:14]}  Qh7 {[%clk 0:00:41]} 30. Ra1 {[%clk 0:01:02]}  Bb2 {[%clk 0:00:40]} 31. Rd1 {[%clk 0:00:59]}  Ba3 {[%clk 0:00:37]} 32. Ne2 {[%clk 0:00:52]}  Rxa2 {[%clk 0:00:27]} 33. Nc3 {[%clk 0:00:52]}  Rc2 {[%clk 0:00:25]} 34. Nxd5 {[%clk 0:00:52]}  Nb4 {[%clk 0:00:13]} 35. Nxb4 {[%clk 0:00:49]}  Bxb4 {[%clk 0:00:14]} 36. d5 {[%clk 0:00:50]}  Be7 {[%clk 0:00:12]} 37. dxe6 {[%clk 0:00:45]}  fxe6 {[%clk 0:00:12]} 38. Qxe6 {[%clk 0:00:45]}  Qe4 {[%clk 0:00:11]} 39. Rd7 {[%clk 0:00:37]}  Qb4 {[%clk 0:00:09]} 40. Qf5+ {[%clk 0:00:35]}  Ke8 {[%clk 0:00:10]} 41. Rxe7+ {[%clk 0:00:35]} 1-0


[Site "https://www.chess.com"]

[Event "Titled Tuesday Blitz June 15 2021"]
[White "Mikhalsky, Vladimir"]
[Black "Shahaliyev, Ismayil"]
[WhiteFideId "14144352"]
[BlackFideId "13406388"]
[WhiteElo "2280"]
[BlackElo "2105"]
[Result "0-1"]
[Round "03"]
[TimeControl "180+1"]
[Date "2021.06.15"]
[WhiteClock "0:00:24"]
[BlackClock "0:00:30"]

1. d4 {[%clk 0:02:41]}  Nf6 {[%clk 0:02:57]} 2. c4 {[%clk 0:02:39]}  c6 {[%clk 0:02:54]} 3. d5 {[%clk 0:02:36]}  b5 {[%clk 0:02:50]} 4. Nc3 {[%clk 0:02:30]}  b4 {[%clk 0:02:47]} 5. Na4 {[%clk 0:02:27]}  cxd5 {[%clk 0:02:41]} 6. cxd5 {[%clk 0:02:26]}  Qa5 {[%clk 0:02:41]} 7. d6 {[%clk 0:02:19]}  exd6 {[%clk 0:02:30]} 8. Nf3 {[%clk 0:02:19]}  Nc6 {[%clk 0:02:30]} 9. Bg5 {[%clk 0:02:17]}  Ne4 {[%clk 0:02:29]} 10. Bd2 {[%clk 0:02:05]}  Ba6 {[%clk 0:02:27]} 11. e3 {[%clk 0:01:57]}  Bxf1 {[%clk 0:02:10]} 12. Kxf1 {[%clk 0:01:57]}  Qb5+ {[%clk 0:02:02]} 13. Kg1 {[%clk 0:01:56]}  Nc5 {[%clk 0:02:00]} 14. b3 {[%clk 0:01:51]}  Be7 {[%clk 0:01:59]} 15. Nb2 {[%clk 0:01:24]}  Ne5 {[%clk 0:01:52]} 16. Nd4 {[%clk 0:01:20]}  Qb7 {[%clk 0:01:52]} 17. f4 {[%clk 0:01:18]}  Nc6 {[%clk 0:01:50]} 18. Nf5 {[%clk 0:01:16]}  O-O {[%clk 0:01:42]} 19. Nc4 {[%clk 0:01:06]}  Ne4 {[%clk 0:01:33]} 20. Bc1 {[%clk 0:00:53]}  Bf6 {[%clk 0:01:29]} 21. Ncxd6 {[%clk 0:00:42]}  Nxd6 {[%clk 0:01:27]} 22. Nxd6 {[%clk 0:00:42]}  Qa6 {[%clk 0:01:23]} 23. Rb1 {[%clk 0:00:39]}  Qxa2 {[%clk 0:01:23]} 24. Bd2 {[%clk 0:00:35]}  Bc3 {[%clk 0:00:44]} 25. Bxc3 {[%clk 0:00:30]}  bxc3 {[%clk 0:00:45]} 26. Ra1 {[%clk 0:00:27]}  c2 {[%clk 0:00:39]} 27. Rxa2 {[%clk 0:00:24]}  cxd1=Q+ {[%clk 0:00:37]} 28. Kf2 {[%clk 0:00:24]}  Qxd6 {[%clk 0:00:30]} 0-1


[Site "https://www.chess.com"]

[Event "Titled Tuesday Blitz June 15 2021"]
[White "Mirzoev, Azer"]
[Black "Priyanka Nutakki"]
[WhiteFideId "13400304"]
[BlackFideId "25049615"]
[WhiteElo "2525"]
[BlackElo "1916"]
[Result "0-1"]
[Round "03"]
[TimeControl "180+1"]
[Date "2021.06.15"]
[WhiteClock "0:00:04"]
[BlackClock "0:00:36"]

1. d4 {[%clk 0:03:00]}  d5 {[%clk 0:02:59]} 2. Nf3 {[%clk 0:03:00]}  Nf6 {[%clk 0:02:59]} 3. Bf4 {[%clk 0:03:00]}  e6 {[%clk 0:02:59]} 4. e3 {[%clk 0:03:00]}  Bd6 {[%clk 0:02:59]} 5. Bg3 {[%clk 0:03:01]}  O-O {[%clk 0:02:59]} 6. c4 {[%clk 0:03:01]}  c5 {[%clk 0:02:53]} 7. cxd5 {[%clk 0:02:58]}  exd5 {[%clk 0:02:51]} 8. dxc5 {[%clk 0:02:54]}  Bxc5 {[%clk 0:02:47]} 9. Nc3 {[%clk 0:02:27]}  Nc6 {[%clk 0:02:46]} 10. a3 {[%clk 0:02:27]}  Re8 {[%clk 0:02:27]} 11. Be2 {[%clk 0:01:56]}  d4 {[%clk 0:02:15]} 12. Na4 {[%clk 0:01:53]}  Bf8 {[%clk 0:02:03]} 13. exd4 {[%clk 0:01:50]}  Bg4 {[%clk 0:01:54]} 14. O-O {[%clk 0:01:49]}  Bxf3 {[%clk 0:01:48]} 15. Bxf3 {[%clk 0:01:49]}  Nxd4 {[%clk 0:01:48]} 16. Bxb7 {[%clk 0:01:45]}  Ne2+ {[%clk 0:01:48]} 17. Kh1 {[%clk 0:01:43]}  Nxg3+ {[%clk 0:01:48]} 18. hxg3 {[%clk 0:01:42]}  Rb8 {[%clk 0:01:35]} 19. Bf3 {[%clk 0:01:36]}  Qa5 {[%clk 0:01:30]} 20. b4 {[%clk 0:01:33]}  Qg5 {[%clk 0:01:27]} 21. Re1 {[%clk 0:01:09]}  Red8 {[%clk 0:01:25]} 22. Qc1 {[%clk 0:01:04]}  Qf5 {[%clk 0:01:17]} 23. Ra2 {[%clk 0:00:20]}  a5 {[%clk 0:01:07]} 24. Nc5 {[%clk 0:00:15]}  axb4 {[%clk 0:01:05]} 25. axb4 {[%clk 0:00:15]}  Rxb4 {[%clk 0:01:02]} 26. Na6 {[%clk 0:00:10]}  Rbd4 {[%clk 0:00:58]} 27. Kg1 {[%clk 0:00:09]}  h5 {[%clk 0:00:50]} 28. Qb1 {[%clk 0:00:06]}  Qg5 {[%clk 0:00:45]} 29. Nc7 {[%clk 0:00:05]}  h4 {[%clk 0:00:42]} 30. gxh4 {[%clk 0:00:05]}  Rxh4 {[%clk 0:00:37]} 31. g3 {[%clk 0:00:05]}  Rc4 {[%clk 0:00:37]} 32. Nb5 {[%clk 0:00:04]}  Rb4 {[%clk 0:00:36]} 33. Rb2 {[%clk 0:00:04]}  Qxb5 {[%clk 0:00:36]} 0-1


[Site "https://www.chess.com"]

[Event "Titled Tuesday Blitz June 15 2021"]
[White "Nestorovic, Nikola"]
[Black "Sychev, Klementy"]
[WhiteFideId "934526"]
[BlackFideId "4114060"]
[WhiteElo "2411"]
[BlackElo "2615"]
[Result "0-1"]
[Round "03"]
[TimeControl "180+1"]
[Date "2021.06.15"]
[WhiteClock "0:00:02"]
[BlackClock "0:00:37"]

1. e4 {[%clk 0:03:00]}  c5 {[%clk 0:02:59]} 2. Nf3 {[%clk 0:03:00]}  d6 {[%clk 0:02:59]} 3. d4 {[%clk 0:03:00]}  cxd4 {[%clk 0:03:00]} 4. Nxd4 {[%clk 0:03:01]}  Nf6 {[%clk 0:03:01]} 5. Nc3 {[%clk 0:03:02]}  g6 {[%clk 0:03:01]} 6. Be3 {[%clk 0:03:01]}  Bg7 {[%clk 0:03:01]} 7. f3 {[%clk 0:02:59]}  Nc6 {[%clk 0:03:01]} 8. Qd2 {[%clk 0:02:59]}  O-O {[%clk 0:03:01]} 9. g4 {[%clk 0:02:56]}  Be6 {[%clk 0:02:51]} 10. Nxe6 {[%clk 0:02:47]}  fxe6 {[%clk 0:02:50]} 11. O-O-O {[%clk 0:02:47]}  Ne5 {[%clk 0:02:47]} 12. Be2 {[%clk 0:02:46]}  Qc8 {[%clk 0:02:43]} 13. Kb1 {[%clk 0:02:33]}  Nfd7 {[%clk 0:02:39]} 14. f4 {[%clk 0:02:09]}  Nc4 {[%clk 0:02:38]} 15. Bxc4 {[%clk 0:02:10]}  Qxc4 {[%clk 0:02:38]} 16. e5 {[%clk 0:02:10]}  Rad8 {[%clk 0:02:32]} 17. exd6 {[%clk 0:01:51]}  Nb6 {[%clk 0:02:18]} 18. dxe7 {[%clk 0:01:45]}  Rxd2 {[%clk 0:02:16]} 19. exf8=Q+ {[%clk 0:01:45]}  Kxf8 {[%clk 0:02:16]} 20. Bxd2 {[%clk 0:01:45]}  Qc6 {[%clk 0:02:01]} 21. Ne2 {[%clk 0:01:17]}  Na4 {[%clk 0:01:52]} 22. b3 {[%clk 0:01:00]}  Qc5 {[%clk 0:01:18]} 23. Rhe1 {[%clk 0:00:30]}  h6 {[%clk 0:01:02]} 24. c3 {[%clk 0:00:27]}  Nb6 {[%clk 0:00:56]} 25. Bc1 {[%clk 0:00:23]}  Nd5 {[%clk 0:00:55]} 26. Bb2 {[%clk 0:00:19]}  Kg8 {[%clk 0:00:44]} 27. Nd4 {[%clk 0:00:20]}  Nxc3+ {[%clk 0:00:42]} 28. Bxc3 {[%clk 0:00:04]}  Qxc3 {[%clk 0:00:43]} 29. Re4 {[%clk 0:00:04]}  a5 {[%clk 0:00:44]} 30. h4 {[%clk 0:00:01]}  a4 {[%clk 0:00:44]} 31. bxa4 {[%clk 0:00:01]}  Qb4+ {[%clk 0:00:40]} 32. Kc2 {[%clk 0:00:01]}  Qxa4+ {[%clk 0:00:37]} 33. Kd3 {[%clk 0:00:02]}  Qxd1+ {[%clk 0:00:37]} 0-1


[Site "https://www.chess.com"]

[Event "Titled Tuesday Blitz June 15 2021"]
[White "Paravyan, David"]
[Black "Shahade, Gregory"]
[WhiteFideId "4194985"]
[BlackFideId "2009064"]
[WhiteElo "2562"]
[BlackElo "2721"]
[Result "1-0"]
[Round "03"]
[TimeControl "180+1"]
[Date "2021.06.15"]
[WhiteClock "0:00:08"]
[BlackClock "0:00:14"]

1. e4 {[%clk 0:03:00]}  e5 {[%clk 0:02:59]} 2. f4 {[%clk 0:03:00]}  exf4 {[%clk 0:02:58]} 3. Nf3 {[%clk 0:02:59]}  Nf6 {[%clk 0:02:58]} 4. Nc3 {[%clk 0:02:54]}  d5 {[%clk 0:02:46]} 5. e5 {[%clk 0:02:25]}  Nh5 {[%clk 0:02:42]} 6. d4 {[%clk 0:02:22]}  Bg4 {[%clk 0:02:39]} 7. Qd3 {[%clk 0:02:13]}  Be7 {[%clk 0:02:27]} 8. Qb5+ {[%clk 0:01:57]}  Nc6 {[%clk 0:01:57]} 9. Qxb7 {[%clk 0:01:39]}  Nb4 {[%clk 0:01:57]} 10. Qb5+ {[%clk 0:01:13]}  c6 {[%clk 0:01:53]} 11. Qa4 {[%clk 0:01:03]}  Bf5 {[%clk 0:01:48]} 12. Bd3 {[%clk 0:01:01]}  Bxd3 {[%clk 0:01:39]} 13. cxd3 {[%clk 0:01:00]}  O-O {[%clk 0:01:23]} 14. O-O {[%clk 0:00:21]}  Nxd3 {[%clk 0:01:19]} 15. Qxc6 {[%clk 0:00:20]}  Nb4 {[%clk 0:01:15]} 16. Qb5 {[%clk 0:00:17]}  Rb8 {[%clk 0:01:14]} 17. Qe2 {[%clk 0:00:13]}  g6 {[%clk 0:01:09]} 18. Bd2 {[%clk 0:00:10]}  Qb6 {[%clk 0:01:08]} 19. Be1 {[%clk 0:00:10]}  Rfd8 {[%clk 0:01:06]} 20. Bf2 {[%clk 0:00:09]}  Ng7 {[%clk 0:01:05]} 21. Rad1 {[%clk 0:00:09]}  Nf5 {[%clk 0:01:06]} 22. Qd2 {[%clk 0:00:09]}  Nc6 {[%clk 0:01:01]} 23. b3 {[%clk 0:00:09]}  Bb4 {[%clk 0:00:58]} 24. Qd3 {[%clk 0:00:09]}  Qa5 {[%clk 0:00:56]} 25. Na4 {[%clk 0:00:09]}  Be7 {[%clk 0:00:55]} 26. Rc1 {[%clk 0:00:08]}  Nb4 {[%clk 0:00:55]} 27. Qd2 {[%clk 0:00:08]}  Qb5 {[%clk 0:00:52]} 28. Rc7 {[%clk 0:00:07]}  Rd7 {[%clk 0:00:45]} 29. Rxd7 {[%clk 0:00:07]}  Qxd7 {[%clk 0:00:45]} 30. Qxf4 {[%clk 0:00:06]}  Nd3 {[%clk 0:00:43]} 31. Qd2 {[%clk 0:00:06]}  Nxf2 {[%clk 0:00:43]} 32. Qxf2 {[%clk 0:00:07]}  Rc8 {[%clk 0:00:40]} 33. Nc5 {[%clk 0:00:07]}  Qb5 {[%clk 0:00:38]} 34. g4 {[%clk 0:00:05]}  Rxc5 {[%clk 0:00:14]} 35. gxf5 {[%clk 0:00:04]}  Rc7 {[%clk 0:00:15]} 36. f6 {[%clk 0:00:04]}  Bf8 {[%clk 0:00:15]} 37. Kh1 {[%clk 0:00:05]}  Qd3 {[%clk 0:00:15]} 38. Re1 {[%clk 0:00:03]}  Rc2 {[%clk 0:00:15]} 39. Qe3 {[%clk 0:00:03]}  Qf5 {[%clk 0:00:15]} 40. e6 {[%clk 0:00:04]}  fxe6 {[%clk 0:00:13]} 41. Qxe6+ {[%clk 0:00:05]}  Qxe6 {[%clk 0:00:14]} 42. Rxe6 {[%clk 0:00:05]}  Kf7 {[%clk 0:00:15]} 43. Ra6 {[%clk 0:00:05]}  Rc7 {[%clk 0:00:14]} 44. Ng5+ {[%clk 0:00:05]}  Kg8 {[%clk 0:00:13]} 45. f7+ {[%clk 0:00:05]}  Kh8 {[%clk 0:00:13]} 46. Re6 {[%clk 0:00:04]}  Kg7 {[%clk 0:00:12]} 47. Re8 {[%clk 0:00:04]}  Rc1+ {[%clk 0:00:12]} 48. Kg2 {[%clk 0:00:04]}  Rc2+ {[%clk 0:00:13]} 49. Kf3 {[%clk 0:00:04]}  Bb4 {[%clk 0:00:13]} 50. Rg8+ {[%clk 0:00:03]}  Kh6 {[%clk 0:00:13]} 51. h4 {[%clk 0:00:04]}  Rc3+ {[%clk 0:00:11]} 52. Kg2 {[%clk 0:00:04]}  Rc2+ {[%clk 0:00:11]} 53. Kf3 {[%clk 0:00:04]}  Rc1 {[%clk 0:00:11]} 54. Ke2 {[%clk 0:00:04]}  Rc2+ {[%clk 0:00:11]} 55. Kf1 {[%clk 0:00:05]}  Rc1+ {[%clk 0:00:11]} 56. Kf2 {[%clk 0:00:05]}  Rc2+ {[%clk 0:00:12]} 57. Kg1 {[%clk 0:00:05]}  Rc1+ {[%clk 0:00:12]} 58. Kh2 {[%clk 0:00:05]}  Rc2+ {[%clk 0:00:13]} 59. Kg3 {[%clk 0:00:06]}  Rc3+ {[%clk 0:00:14]} 60. Nf3 {[%clk 0:00:06]}  Rc7 {[%clk 0:00:11]} 61. f8=Q+ {[%clk 0:00:06]}  Bxf8 {[%clk 0:00:11]} 62. Rxf8 {[%clk 0:00:07]}  Rc2 {[%clk 0:00:12]} 63. a4 {[%clk 0:00:05]}  Rc3 {[%clk 0:00:12]} 64. Rb8 {[%clk 0:00:05]}  Kh5 {[%clk 0:00:12]} 65. Rb7 {[%clk 0:00:05]}  h6 {[%clk 0:00:12]} 66. Rxa7 {[%clk 0:00:06]}  g5 {[%clk 0:00:13]} 67. hxg5 {[%clk 0:00:06]}  hxg5 {[%clk 0:00:14]} 68. Rh7+ {[%clk 0:00:06]}  Kg6 {[%clk 0:00:13]} 69. Rd7 {[%clk 0:00:07]}  Rxb3 {[%clk 0:00:13]} 70. Rxd5 {[%clk 0:00:06]}  Ra3 {[%clk 0:00:08]} 71. Rxg5+ {[%clk 0:00:06]}  Kh6 {[%clk 0:00:09]} 72. a5 {[%clk 0:00:05]}  Kh7 {[%clk 0:00:08]} 73. Kf4 {[%clk 0:00:06]}  Kh6 {[%clk 0:00:09]} 74. Rc5 {[%clk 0:00:06]}  Kh7 {[%clk 0:00:09]} 75. Ne5 {[%clk 0:00:07]}  Kh8 {[%clk 0:00:10]} 76. Ke4 {[%clk 0:00:07]}  Kg7 {[%clk 0:00:10]} 77. Nc4 {[%clk 0:00:08]}  Ra4 {[%clk 0:00:10]} 78. Kd5 {[%clk 0:00:08]}  Kf7 {[%clk 0:00:10]} 79. Kc6 {[%clk 0:00:09]}  Ke6 {[%clk 0:00:10]} 80. d5+ {[%clk 0:00:09]}  Ke7 {[%clk 0:00:10]} 81. d6+ {[%clk 0:00:10]}  Kd8 {[%clk 0:00:11]} 82. Kd5 {[%clk 0:00:07]}  Ra1 {[%clk 0:00:10]} 83. Ne5 {[%clk 0:00:08]}  Rd1+ {[%clk 0:00:10]} 84. Ke6 {[%clk 0:00:08]}  Re1 {[%clk 0:00:09]} 85. Rb5 {[%clk 0:00:07]}  Kc8 {[%clk 0:00:09]} 86. d7+ {[%clk 0:00:08]}  Kc7 {[%clk 0:00:10]} 87. Rc5+ {[%clk 0:00:08]}  Kb7 {[%clk 0:00:10]} 88. d8=Q {[%clk 0:00:05]}  Rb1 {[%clk 0:00:10]} 89. Qc7+ {[%clk 0:00:05]}  Ka6 {[%clk 0:00:10]} 90. Rc6+ {[%clk 0:00:06]}  Kb5 {[%clk 0:00:11]} 91. Qb6+ {[%clk 0:00:06]}  Ka4 {[%clk 0:00:11]} 92. Rc4+ {[%clk 0:00:06]}  Ka3 {[%clk 0:00:11]} 93. Rc3+ {[%clk 0:00:07]}  Ka2 {[%clk 0:00:09]} 94. Qxb1+ {[%clk 0:00:06]}  Kxb1 {[%clk 0:00:10]} 95. Rc4 {[%clk 0:00:06]}  Kb2 {[%clk 0:00:10]} 96. a6 {[%clk 0:00:07]}  Kb3 {[%clk 0:00:11]} 97. a7 {[%clk 0:00:08]}  Kb2 {[%clk 0:00:12]} 98. a8=Q {[%clk 0:00:08]}  Kb1 {[%clk 0:00:13]} 99. Qa4 {[%clk 0:00:07]}  Kb2 {[%clk 0:00:13]} 100. Rc2+ {[%clk 0:00:08]}  Kb1 {[%clk 0:00:14]} 101. Qa2# {[%clk 0:00:08]} 1-0


[Site "https://www.chess.com"]